bitfinex/quotes_BTCUSD_20250615
["timestamp","ask_amount","ask_price","bid_price","bid_amount"]
[1749991903664,0.22077975,105380.0,105370.0,0.20878761]
[1749991904113,0.20327975,105380.0,105370.0,0.20878761]
[1749991904360,0.03246748,105380.0,105370.0,0.21827743]
[1749991904874,0.03246748,105380.0,105370.0,0.24466716]
[1749991905074,0.03246748,105380.0,105370.0,0.26166716]
[1749991905787,0.03246748,105380.0,105370.0,0.24466716]
[1749991905788,0.004,105380.0,105370.0,0.24466716]
[1749991905991,0.01348865,105380.0,105370.0,0.28032745]
[1749991906198,0.004,105380.0,105370.0,0.37291681]
[1749991907480,0.01348865,105380.0,105370.0,0.37291681]
[1749991907682,0.004,105380.0,105370.0,0.37291681]
[1749991909626,0.004,105380.0,105370.0,0.46915857]
[1749991911763,0.004,105380.0,105370.0,0.49743695]
[1749991912201,0.002,105380.0,105370.0,0.49743695]
[1749991913272,0.01897559,105390.0,105380.0,0.21825663]
[1749991913480,0.00948775,105390.0,105380.0,0.50379839]
[1749991914333,0.01897568,105390.0,105380.0,0.50379839]
[1749991914538,0.00948775,105390.0,105380.0,0.50379839]
[1749991914743,0.01148775,105390.0,105380.0,0.50379839]
[1749991915776,0.01348775,105390.0,105380.0,0.50379839]
[1749991916013,0.004,105390.0,105380.0,0.58618187]
[1749991929181,0.01348775,105390.0,105380.0,0.58618187]
[1749991929389,0.004,105390.0,105380.0,0.58618187]
[1749991929818,0.02297595,105390.0,105380.0,0.58618187]
[1749991929995,0.02297595,105390.0,105380.0,0.50331839]
[1749991930617,0.02297586,105390.0,105380.0,0.50331839]
[1749991931078,0.23172367,105390.0,105380.0,0.30500956]
[1749991931279,0.23172367,105390.0,105380.0,0.46937848]
[1749991931466,0.25861214,105390.0,105380.0,0.46937848]
[1749991931669,0.25861286,105390.0,105380.0,0.46937848]
[1749991932010,0.24912484,105390.0,105380.0,0.46937848]
[1749991932671,0.24912484,105390.0,105380.0,0.47886731]
[1749991933051,0.26572484,105390.0,105380.0,0.30500956]
[1749991933311,0.26572484,105390.0,105380.0,0.46937857]
[1749991933524,0.26572484,105390.0,105380.0,0.48835632]
[1749991933780,0.004,105390.0,105380.0,0.59893281]
[1749991934212,0.004,105390.0,105380.0,0.44409281]
[1749991934447,0.004,105390.0,105380.0,0.59917281]
[1749991935117,0.002,105390.0,105380.0,0.59917281]
[1749991935351,0.002,105390.0,105380.0,0.36637632]
[1749991935587,0.002,105390.0,105380.0,0.52145632]
[1749991935811,0.002,105390.0,105380.0,0.36637632]
[1749991936030,0.03794857,105400.0,105390.0,0.21823592]
[1749991936268,0.06306118,105400.0,105390.0,0.21823592]
[1749991936513,0.26230261,105400.0,105390.0,0.20874817]
[1749991936713,0.25281558,105400.0,105390.0,0.20874835]
[1749991936908,0.25281558,105400.0,105390.0,0.21823673]
[1749991937537,0.25481558,105400.0,105390.0,0.21823673]
[1749991937731,0.24532837,105400.0,105390.0,0.20874835]
[1749991937953,0.24532837,105400.0,105390.0,0.21823673]
[1749991938406,0.24732837,105400.0,105390.0,0.22772493]
[1749991938904,0.24732837,105400.0,105390.0,0.23721304]
[1749991939154,0.05757505,105400.0,105390.0,0.23721304]
[1749991939369,0.05757505,105400.0,105390.0,0.23721241]
[1749991939596,0.06706163,105400.0,105390.0,0.23721241]
[1749991939824,0.04946163,105400.0,105390.0,0.23721241]
[1749991940489,0.0589492,105400.0,105390.0,0.23721241]
[1749991940687,0.06843686,105400.0,105390.0,0.23721241]
[1749991940952,0.08603686,105400.0,105390.0,0.23721241]
[1749991941183,0.25681603,105400.0,105390.0,0.19925979]
[1749991941484,0.25681603,105400.0,105390.0,0.21823646]
[1749991943696,0.25681603,105400.0,105390.0,0.20874817]
[1749991944539,0.24732855,105400.0,105390.0,0.20874817]
[1749991945623,0.24732855,105400.0,105390.0,0.21823646]
[1749991946026,0.24732855,105400.0,105390.0,0.20874817]
[1749991948489,0.24732855,105400.0,105390.0,0.21823646]
[1749991948927,0.24732855,105400.0,105390.0,0.22772466]
[1749991949336,0.24732855,105400.0,105390.0,0.23721277]
[1749991949482,0.24732855,105400.0,105390.0,0.23721223]
[1749991950375,0.24732855,105400.0,105390.0,0.2277243]
[1749991950584,0.24732855,105400.0,105390.0,0.23721232]
[1749991950799,0.0480873,105400.0,105390.0,0.23721187]
[1749991951012,0.04946181,105400.0,105390.0,0.23721187]
[1749991951223,0.02297397,105400.0,105390.0,0.32860123]
[1749991951854,0.03246127,105400.0,105390.0,0.32860123]
[1749991952278,0.04194875,105400.0,105390.0,0.32860123]
[1749991952728,0.04194875,105400.0,105390.0,0.31280123]
[1749991955489,0.03246127,105400.0,105390.0,0.31280123]
[1749991955708,0.04194866,105400.0,105390.0,0.31280123]
[1749991956125,0.02297397,105400.0,105390.0,0.31280123]
[1749991956336,0.03246127,105400.0,105390.0,0.32810123]
[1749991956797,0.02297397,105400.0,105390.0,0.39693629]
[1749991957003,0.03246127,105400.0,105390.0,0.39693629]
[1749991957209,0.04194875,105400.0,105390.0,0.39693629]
[1749991957813,0.03246127,105400.0,105390.0,0.39693629]
[1749991959547,0.04194875,105400.0,105390.0,0.39693629]
[1749991959965,0.04194875,105400.0,105390.0,0.32810123]
[1749991960387,0.03246127,105400.0,105390.0,0.32810123]
[1749991961187,0.04194875,105400.0,105390.0,0.32810123]
[1749991962842,0.03246127,105400.0,105390.0,0.32810123]
[1749991963507,0.04194875,105400.0,105390.0,0.32810123]
[1749991963723,0.03246127,105400.0,105390.0,0.32810123]
[1749991964154,0.04194875,105400.0,105390.0,0.39693629]
[1749991967463,0.02297397,105400.0,105390.0,0.34450123]
[1749991967652,0.03246127,105400.0,105390.0,0.34450123]
[1749991972841,0.03246118,105400.0,105390.0,0.34450123]
[1749991973966,0.02297397,105400.0,105390.0,0.34450123]
[1749991974208,0.004,105400.0,105390.0,0.44074299]
[1749991974434,0.004,105400.0,105390.0,0.52589051]
[1749991974653,0.01348685,105400.0,105390.0,0.36515363]
[1749991974867,0.004,105400.0,105390.0,0.36515363]
[1749991975102,0.002,105400.0,105390.0,0.36515363]
[1749991975749,0.38290674,105410.0,105400.0,0.23471522]
[1749991977108,0.38538122,105410.0,105400.0,0.23471522]
[1749991977323,0.38738122,105410.0,105400.0,0.23471522]
[1749991980727,0.39686789,105410.0,105400.0,0.23471522]
[1749991981509,0.38738122,105410.0,105400.0,0.29032563]
[1749991984018,0.05686789,105410.0,105400.0,0.29032563]
[1749991984973,0.03789464,105410.0,105400.0,0.29032563]
[1749991985193,0.03789464,105410.0,105400.0,0.40543522]
[1749991985388,0.04738122,105410.0,105400.0,0.40543522]
[1749991985587,0.04738122,105410.0,105400.0,0.21821522]
[1749991985844,0.04738122,105410.0,105400.0,0.38853522]
[1749991986246,0.05686789,105410.0,105400.0,0.38853522]
[1749991988653,0.05686789,105410.0,105400.0,0.23401522]
[1749991988862,0.05686861,105410.0,105400.0,0.38853522]
[1749991989087,0.22763139,105410.0,105400.0,0.36324837]
[1749991989296,0.22763139,105410.0,105400.0,0.20872837]
[1749991989297,0.24343139,105410.0,105400.0,0.20872837]
[1749991989509,0.23394481,105410.0,105400.0,0.19924089]
[1749991989799,0.23394481,105410.0,105400.0,0.20872837]
[1749991990236,0.01897433,105400.0,105390.0,0.41207821]
[1749991990430,0.00948694,105400.0,105390.0,0.56659821]
[1749991990642,0.01897424,105400.0,105390.0,0.56659821]
[1749991991073,0.01897415,105400.0,105390.0,0.56659821]
[1749991991865,0.02846154,105400.0,105390.0,0.55039821]
[1749991992075,0.01897415,105400.0,105390.0,0.55039821]
[1749991992500,0.01897415,105400.0,105390.0,0.56579821]
[1749991993156,0.02846154,105400.0,105390.0,0.56579821]
[1749991994060,0.01897415,105400.0,105390.0,0.56579821]
[1749991994732,0.02846154,105400.0,105390.0,0.56579821]
[1749991995892,0.02846145,105400.0,105390.0,0.56579821]
[1749991996310,0.02846145,105400.0,105390.0,0.62778787]
[1749991997155,0.02846145,105400.0,105390.0,0.56579821]
[1749991997597,0.03794893,105400.0,105390.0,0.56579821]
[1749991997730,0.02846145,105400.0,105390.0,0.56579821]
[1749991998708,0.01897415,105400.0,105390.0,0.56579821]
[1749991999578,0.02846154,105400.0,105390.0,0.49020885]
[1749991999805,0.01897415,105400.0,105390.0,0.49020885]
[1749992000195,0.02846154,105400.0,105390.0,0.49020885]
[1749992000405,0.21821549,105400.0,105390.0,0.35377988]
[1749992000530,0.23491549,105400.0,105390.0,0.37275655]
[1749992000948,0.02846208,105400.0,105390.0,0.39173259]
[1749992001165,0.01897415,105400.0,105390.0,0.46878478]
[1749992001598,0.01897415,105400.0,105390.0,0.48508478]
[1749992001795,0.02846154,105400.0,105390.0,0.42373259]
[1749992002027,0.02846145,105400.0,105390.0,0.42373259]
[1749992002491,0.23084445,105410.0,105400.0,0.20872837]
[1749992002698,0.21414445,105410.0,105400.0,0.20872837]
[1749992003063,0.21414445,105410.0,105400.0,0.23988916]
[1749992003615,0.20665805,105410.0,105400.0,0.19924098]
[1749992003828,0.20665805,105410.0,105400.0,0.20872855]
[1749992004039,0.20865805,105410.0,105400.0,0.20872855]
[1749992006424,0.19917138,105410.0,105400.0,0.20872855]
[1749992006836,0.19917138,105410.0,105390.0,0.40475556]
[1749992007049,0.01397478,105400.0,105390.0,0.47369789]
[1749992007863,0.01897451,105400.0,105390.0,0.47369789]
[1749992008423,0.02846199,105400.0,105390.0,0.47369789]
[1749992008781,0.02846163,105400.0,105390.0,0.47369789]
[1749992009977,0.00543607,105410.0,105400.0,0.24881522]
[1749992010181,0.0142,105450.0,105440.0,0.02458406]
[1749992010182,5.23966355,105450.0,105440.0,0.02458406]
[1749992010394,5.0589041,105450.0,105440.0,0.23323249]
[1749992010604,0.03341125,105440.0,105430.0,0.24273715]
[1749992010820,0.04289522,105440.0,105430.0,0.22763715]
[1749992011039,0.05237928,105440.0,105430.0,0.22763724]
[1749992011272,0.02392737,105440.0,105430.0,0.23712157]
[1749992011474,0.03341116,105440.0,105430.0,0.23712157]
[1749992011673,0.04289513,105440.0,105430.0,0.23712157]
[1749992012283,0.04289513,105440.0,105430.0,0.23812157]
[1749992012491,0.05237919,105440.0,105430.0,0.23812157]
[1749992013095,0.05237919,105440.0,105430.0,0.24012157]
[1749992013300,0.23257718,105440.0,105430.0,0.22115282]
[1749992013503,0.22309357,105440.0,105430.0,0.19269932]
[1749992013843,0.22309357,105440.0,105430.0,0.2021841]
[1749992014253,0.22309357,105440.0,105430.0,0.2011841]
[1749992014455,0.22309357,105440.0,105430.0,0.1991841]
[1749992015391,0.22309357,105440.0,105430.0,0.20866897]
[1749992015844,0.22309357,105440.0,105430.0,0.21815366]
[1749992016061,0.00496042,105440.0,105430.0,0.50048581]
[1749992017469,0.02842231,105450.0,105440.0,0.25073243]
[1749992017680,0.03790466,105450.0,105440.0,0.34697419]
[1749992017862,0.04738719,105450.0,105440.0,0.50405419]
[1749992018073,0.03790466,105450.0,105440.0,0.58877854]
[1749992018214,0.02842231,105450.0,105440.0,0.58877854]
[1749992018423,0.03790466,105450.0,105440.0,0.58877854]
[1749992018671,0.04738719,105450.0,105440.0,0.58877854]
[1749992018867,0.03790466,105450.0,105440.0,0.58877854]
[1749992019083,0.23705134,105450.0,105440.0,0.09624176]
[1749992019293,0.23705134,105450.0,105440.0,0.18968133]
[1749992019702,0.21813189,105440.0,105430.0,0.23415172]
[1749992019896,0.23709956,105440.0,105430.0,0.4968779]
[1749992020154,0.04741823,105440.0,105430.0,0.5765802]
[1749992020521,0.04741823,105440.0,105430.0,0.5925802]
[1749992021129,0.04741904,105440.0,105430.0,0.4356202]
[1749992021341,0.23710037,105440.0,105430.0,0.58417587]
[1749992021547,0.23710037,105440.0,105430.0,0.5936602]
[1749992021705,0.04741904,105440.0,105430.0,0.5936602]
[1749992021908,0.04741904,105440.0,105430.0,0.5956602]
[1749992022175,0.04741904,105440.0,105430.0,0.58617587]
[1749992022377,0.22761685,105440.0,105430.0,0.58617587]
[1749992022999,0.01896749,105440.0,105430.0,0.5956602]
[1749992023196,0.02845137,105440.0,105430.0,0.5956602]
[1749992023736,0.03793534,105440.0,105430.0,0.5956602]
[1749992023955,0.22761667,105440.0,105430.0,0.16949973]
[1749992024160,0.20864918,105440.0,105430.0,0.003]
[1749992024854,0.20864918,105440.0,105430.0,0.002]
[1749992025293,0.02845344,105430.0,105420.0,0.39143048]
[1749992025675,0.02845344,105430.0,105420.0,0.40733048]
[1749992025972,0.01896857,105430.0,105420.0,0.4755413]
[1749992026191,0.03793777,105430.0,105420.0,0.4755413]
[1749992026379,0.04742255,105430.0,105420.0,0.4755413]
[1749992026602,0.04742327,105430.0,105420.0,0.4775413]
[1749992027581,0.04742327,105430.0,105420.0,0.4785413]
[1749992027789,0.01896893,105430.0,105420.0,0.4785413]
[1749992027994,0.02845362,105430.0,105420.0,0.4785413]
[1749992028762,0.19916494,105440.0,105430.0,0.18969932]
[1749992028963,0.19916494,105440.0,105430.0,0.26600811]
[1749992029503,0.19916494,105440.0,105430.0,0.2754928]
[1749992029504,0.01896749,105440.0,105430.0,0.2754928]
[1749992029806,0.02845155,105440.0,105430.0,0.28497722]
[1749992031209,0.08539748,105440.0,105430.0,0.28497722]
[1749992031427,0.02845155,105440.0,105430.0,0.28497722]
[1749992031892,0.21813288,105440.0,105430.0,0.21815321]
[1749992032116,0.21813288,105440.0,105430.0,0.21815339]
[1749992032833,0.21813288,105440.0,105430.0,0.2276379]
[1749992033108,0.22309304,105440.0,105430.0,0.2276379]
[1749992033559,0.22309304,105440.0,105430.0,0.23712232]
[1749992034256,0.22309304,105440.0,105430.0,0.28657412]
[1749992034497,0.22309304,105440.0,105430.0,0.29605863]
[1749992035321,0.22309304,105440.0,105430.0,0.2276379]
[1749992036606,0.18968133,105440.0,105430.0,0.2276379]
[1749992037645,0.19916494,105440.0,105430.0,0.2276379]
[1749992037891,0.19916494,105440.0,105430.0,0.2436379]
[1749992038111,0.01896767,105440.0,105430.0,0.25312187]
[1749992038323,0.01896767,105440.0,105430.0,0.32151256]
[1749992039578,0.02845155,105440.0,105430.0,0.32151256]
[1749992040248,0.21813288,105440.0,105430.0,0.30254381]
[1749992040460,0.21813288,105440.0,105430.0,0.31202823]
[1749992040665,0.01896749,105440.0,105430.0,0.32151256]
[1749992040871,0.22761685,105440.0,105430.0,0.31202823]
[1749992041075,0.22761685,105440.0,105430.0,0.24363754]
[1749992041317,0.21813324,105440.0,105430.0,0.21815312]
[1749992042377,0.21813324,105440.0,105430.0,0.22763754]
[1749992042584,0.02845191,105440.0,105430.0,0.22763754]
[1749992042810,0.02845083,105440.0,105430.0,0.31271123]
[1749992043019,0.0379348,105440.0,105430.0,0.32891123]
[1749992043242,0.0379348,105440.0,105430.0,0.35694488]
[1749992043451,0.0379348,105440.0,105430.0,0.27187119]
[1749992043656,0.22761685,105440.0,105430.0,0.24383754]
[1749992044082,0.02845146,105440.0,105430.0,0.25332187]
[1749992044710,0.21808835,105450.0,105440.0,0.21813288]
[1749992044915,0.60924653,105450.0,105440.0,0.20864918]
[1749992045120,0.60924653,105450.0,105440.0,0.20864936]
[1749992045332,0.59976373,105450.0,105440.0,0.20864936]
[1749992045556,0.60865125,105450.0,105440.0,0.21813324]
[1749992045771,0.59976373,105450.0,105440.0,0.21813324]
[1749992046181,0.61065121,105450.0,105440.0,0.21813324]
[1749992046404,0.61266597,105450.0,105440.0,0.20864936]
[1749992046641,0.61266597,105450.0,105440.0,0.19916539]
[1749992046846,0.61266597,105450.0,105430.0,0.30045779]
[1749992046847,0.1991653,105440.0,105430.0,0.30045779]
[1749992047055,0.02845191,105440.0,105430.0,0.30994212]
[1749992047260,0.22761694,105440.0,105430.0,0.30045779]
[1749992048327,0.03793561,105440.0,105430.0,0.30994212]
[1749992048537,0.02845155,105440.0,105430.0,0.30994212]
[1749992049600,0.02845155,105440.0,105430.0,0.30045779]
[1749992049810,0.21813288,105440.0,105430.0,0.30045779]
[1749992050232,0.21813288,105440.0,105430.0,0.30994212]
[1749992050442,0.02845155,105440.0,105430.0,0.32594212]
[1749992050854,0.01896758,105440.0,105430.0,0.30994212]
[1749992051079,0.01896758,105440.0,105430.0,0.38394483]
[1749992051293,0.00948343,105440.0,105430.0,0.39994483]
[1749992051511,0.01896695,105440.0,105430.0,0.39994483]
[1749992051723,0.02845065,105440.0,105430.0,0.39994483]
[1749992051931,0.01896695,105440.0,105430.0,0.32594212]
[1749992052148,0.02845056,105440.0,105430.0,0.32594212]
[1749992052361,0.03793435,105440.0,105430.0,0.32594212]
[1749992052565,0.02845056,105440.0,105430.0,0.32594212]
[1749992052781,0.03793444,105440.0,105430.0,0.32594212]
[1749992053267,0.03793444,105440.0,105430.0,0.30994212]
[1749992053480,0.0474185,105440.0,105430.0,0.30994212]
[1749992055796,0.0474185,105440.0,105430.0,0.32584212]
[1749992056416,0.0474185,105440.0,105430.0,0.40266642]
[1749992056829,0.03793444,105440.0,105430.0,0.40266642]
[1749992057243,0.03793444,105440.0,105430.0,0.32584212]
[1749992062029,0.23709983,105440.0,105430.0,0.30045779]
[1749992062256,0.03793444,105440.0,105430.0,0.46558212]
[1749992062471,0.03793444,105440.0,105430.0,0.48078212]
[1749992066371,0.03793435,105440.0,105430.0,0.48078212]
[1749992066785,0.04741823,105440.0,105430.0,0.48078212]
[1749992067605,0.03793435,105440.0,105430.0,0.48078212]
[1749992068422,0.04741823,105440.0,105430.0,0.48078212]
[1749992068624,0.03793435,105440.0,105430.0,0.48078212]
[1749992069166,0.04741823,105440.0,105430.0,0.48078212]
[1749992069780,0.03793435,105440.0,105430.0,0.48078212]
[1749992070112,0.02845056,105440.0,105430.0,0.48078212]
[1749992070316,0.03793426,105440.0,105430.0,0.48078212]
[1749992070768,0.01896695,105440.0,105430.0,0.48078212]
[1749992070984,0.01896704,105440.0,105430.0,0.55066333]
[1749992071774,0.02845083,105440.0,105430.0,0.55066333]
[1749992072390,0.03793471,105440.0,105430.0,0.55066333]
[1749992072802,0.01896704,105440.0,105430.0,0.55066333]
[1749992073039,0.02845083,105440.0,105430.0,0.55066333]
[1749992073394,0.03793471,105440.0,105430.0,0.48078212]
[1749992073800,0.03793471,105440.0,105430.0,0.38999276]
[1749992074003,0.04741868,105440.0,105430.0,0.38999276]
[1749992077119,0.04741868,105440.0,105430.0,0.37379276]
[1749992077330,0.22761703,105440.0,105430.0,0.35482428]
[1749992077535,0.24351703,105440.0,105430.0,0.36430888]
[1749992077745,0.24351703,105440.0,105430.0,0.37379366]
[1749992077952,0.22761703,105440.0,105430.0,0.38327817]
[1749992078781,0.22761703,105440.0,105430.0,0.39276259]
[1749992080441,0.0379357,105440.0,105430.0,0.39276196]
[1749992080645,0.02845164,105440.0,105430.0,0.40976196]
[1749992082511,0.0379357,105440.0,105430.0,0.40976196]
[1749992082726,0.0379357,105440.0,105430.0,0.40027763]
[1749992082935,0.0379357,105440.0,105430.0,0.24463763]
[1749992083138,0.0379357,105440.0,105430.0,0.39967763]
[1749992085704,0.0379357,105440.0,105430.0,0.40916196]
[1749992086526,0.02845164,105440.0,105430.0,0.40916196]
[1749992086728,0.65834447,105450.0,105430.0,0.40916142]
[1749992087045,0.65834454,105450.0,105430.0,0.40916142]
[1749992087418,0.47065006,105450.0,105430.0,0.40916142]
[1749992087640,0.66609006,105450.0,105430.0,0.40916142]
[1749992087819,0.6749925,105450.0,105430.0,0.40916142]
[1749992088097,0.66809006,105450.0,105430.0,0.40916142]
[1749992088307,0.67009006,105450.0,105430.0,0.40916142]
[1749992088538,0.00948397,105440.0,105430.0,0.40916142]
[1749992089384,0.01896785,105440.0,105430.0,0.39967718]
[1749992090655,0.02845164,105440.0,105430.0,0.39967718]
[1749992093176,0.01896767,105440.0,105430.0,0.39967718]
[1749992093589,0.02845164,105440.0,105430.0,0.39967718]
[1749992093806,0.01896875,105430.0,105420.0,0.24178498]
[1749992094021,0.22763781,105430.0,105420.0,0.20868841]
[1749992094236,0.23475357,105430.0,105420.0,0.199203]
[1749992094441,0.23475357,105430.0,105420.0,0.20868859]
[1749992094866,0.23475357,105430.0,105420.0,0.218174]
[1749992095289,0.23475357,105430.0,105420.0,0.21168859]
[1749992095290,0.22526906,105430.0,105420.0,0.21168859]
[1749992095705,0.22526906,105430.0,105420.0,0.22117409]
[1749992096333,0.20866906,105430.0,105420.0,0.22117409]
[1749992097593,0.20866906,105430.0,105420.0,0.2306595]
[1749992099065,0.20866906,105430.0,105420.0,0.24014482]
[1749992100430,0.01896974,105430.0,105420.0,0.24014482]
[1749992100635,0.01896974,105430.0,105420.0,0.25714482]
[1749992101436,0.01896974,105430.0,105420.0,0.24014482]
[1749992101639,0.20866906,105430.0,105420.0,0.24014482]
[1749992102156,0.20618906,105430.0,105420.0,0.25714482]
[1749992102372,0.01648974,105430.0,105420.0,0.25714482]
[1749992102782,0.03358974,105430.0,105420.0,0.2306595]
[1749992102987,0.20619932,105430.0,105420.0,0.22117409]
[1749992103230,0.18969932,105430.0,105420.0,0.22117409]
[1749992103847,0.01896974,105430.0,105420.0,0.23065932]
[1749992104050,0.03793912,105430.0,105420.0,0.2306595]
[1749992104630,0.03793912,105430.0,105420.0,0.24014482]
[1749992105099,0.22763844,105430.0,105420.0,0.24014482]
[1749992105482,0.03793912,105430.0,105420.0,0.24014437]
[1749992106135,0.03793912,105430.0,105420.0,0.25634437]
[1749992106695,0.22763844,105430.0,105420.0,0.24685914]
[1749992106912,0.02845416,105430.0,105420.0,0.25634437]
[1749992107250,0.03793912,105430.0,105420.0,0.25634437]
[1749992108889,0.02845416,105430.0,105420.0,0.25634437]
[1749992109060,0.01896929,105430.0,105420.0,0.25634437]
[1749992110337,0.02845344,105430.0,105420.0,0.25634437]
[1749992110713,0.03793822,105430.0,105420.0,0.25634437]
[1749992110919,0.01896875,105430.0,105420.0,0.25634437]
[1749992111127,0.02845344,105430.0,105420.0,0.25634437]
[1749992111340,0.3728221,105440.0,105430.0,0.21815312]
[1749992111558,0.38172485,105440.0,105430.0,0.25135312]
[1749992111769,0.40069248,105440.0,105430.0,0.25135312]
[1749992111973,0.59095507,105440.0,105430.0,0.24186879]
[1749992112177,0.59037429,105440.0,105430.0,0.24186879]
[1749992112386,0.57198803,105440.0,105430.0,0.21568419]
[1749992112601,0.19918401,105430.0,105420.0,0.2251885]
[1749992112805,0.0189692,105430.0,105420.0,0.39182473]
[1749992113018,0.21815339,105430.0,105420.0,0.20868877]
[1749992113225,0.23455339,105430.0,105420.0,0.21817436]
[1749992113425,0.22506888,105430.0,105420.0,0.19920318]
[1749992113655,0.22506888,105430.0,105420.0,0.20868895]
[1749992113861,0.01897055,105420.0,105410.0,0.4060807]
[1749992114067,0.02845596,105420.0,105410.0,0.2513607]
[1749992114268,0.03794128,105420.0,105410.0,0.24187475]
[1749992114470,0.22765923,105420.0,105410.0,0.22517529]
[1749992114616,0.22765923,105420.0,105410.0,0.37985529]
[1749992115424,0.21817391,105420.0,105410.0,0.21968898]
[1749992115633,0.21817391,105420.0,105410.0,0.21768898]
[1749992115834,0.21817391,105420.0,105410.0,0.25336187]
[1749992116127,0.21817391,105420.0,105410.0,0.26284818]
[1749992116494,0.21817391,105420.0,105410.0,0.2733344]
[1749992117874,0.21817391,105420.0,105410.0,0.26384818]
[1749992118099,0.21817391,105420.0,105410.0,0.25436187]
[1749992119188,0.199203,105420.0,105410.0,0.003]
[1749992119396,0.232603,105420.0,105410.0,0.003]
[1749992119606,0.572603,105420.0,105410.0,0.003]
[1749992120022,0.572603,105420.0,105410.0,0.002]
[1749992120238,0.57756118,105420.0,105410.0,0.002]
[1749992120434,5.62756118,105420.0,105410.0,0.002]
[1749992121474,0.19922189,105410.0,105400.0,0.21821521]
[1749992122718,0.19922189,105410.0,105400.0,0.2193503]
[1749992122921,0.19922189,105410.0,105400.0,0.21186282]
[1749992124591,0.1942907,105410.0,105400.0,0.21186282]
[1749992126666,0.1942907,105410.0,105400.0,0.2213503]
[1749992126868,0.1942907,105410.0,105400.0,0.24683769]
[1749992128589,0.1942907,105410.0,105400.0,0.2733249]
[1749992128771,0.02845938,105410.0,105400.0,0.34160766]
[1749992129041,0.23716749,105410.0,105400.0,0.27332382]
[1749992129273,0.03794542,105410.0,105400.0,0.27332382]
[1749992129893,0.04743218,105410.0,105400.0,0.27332382]
[1749992130104,0.22768145,105410.0,105400.0,0.26383679]
[1749992130526,0.36845938,105410.0,105400.0,0.27332382]
[1749992131424,0.37794614,105410.0,105400.0,0.27332382]
[1749992131638,0.37794614,105410.0,105400.0,0.26383679]
[1749992131845,0.56768145,105410.0,105400.0,0.26383679]
[1749992132261,0.55819514,105410.0,105400.0,0.25434967]
[1749992133128,0.54870874,105410.0,105400.0,0.24486246]
[1749992133757,0.54870874,105410.0,105400.0,0.25434976]
[1749992134600,0.54870874,105410.0,105400.0,0.26383697]
[1749992135033,0.54870874,105410.0,105400.0,0.27332409]
[1749992135235,0.54870874,105410.0,105400.0,0.26383697]
[1749992136290,0.54870874,105410.0,105400.0,0.27332409]
[1749992138822,0.35897343,105410.0,105400.0,0.27332409]
[1749992139444,0.35897307,105410.0,105400.0,0.27332364]
[1749992144180,0.54870838,105410.0,105400.0,0.26383661]
[1749992144593,0.54870838,105410.0,105400.0,0.25434949]
[1749992146262,0.54870838,105410.0,105400.0,0.24486228]
[1749992146927,0.37794578,105410.0,105400.0,0.33318119]
[1749992147352,0.03794578,105410.0,105400.0,0.34266822]
[1749992147568,0.02845902,105410.0,105400.0,0.34266822]
[1749992147783,0.0379456,105410.0,105400.0,0.34266822]
[1749992148624,0.04743227,105410.0,105400.0,0.34266822]
[1749992149048,0.34798799,105420.0,105410.0,0.20870856]
[1749992149255,0.37644458,105420.0,105410.0,0.30268645]
[1749992149458,0.37644458,105420.0,105410.0,0.31217276]
[1749992150086,0.51724104,105420.0,105410.0,0.32165889]
[1749992150294,0.52672654,105420.0,105410.0,0.47645889]
[1749992151352,0.50775572,105420.0,105410.0,0.47645889]
[1749992151578,0.17724095,105420.0,105410.0,0.47645889]
[1749992151789,0.15827067,105420.0,105410.0,0.47645889]
[1749992152008,0.15331249,105420.0,105410.0,0.57270065]
[1749992153053,0.15331249,105420.0,105410.0,0.57470065]
[1749992154297,0.15331249,105420.0,105410.0,0.57570065]
[1749992160089,0.19125395,105420.0,105410.0,0.52332916]
[1749992161152,0.20073972,105420.0,105410.0,0.52332916]
[1749992161361,0.20073972,105420.0,105410.0,0.36860916]
[1749992161604,0.20073972,105420.0,105410.0,0.52332916]
[1749992162416,0.19125395,105420.0,105410.0,0.52332916]
[1749992165155,0.38788667,105420.0,105410.0,0.003]
[1749992165370,0.39520126,105420.0,105410.0,0.003]
[1749992165995,0.39520126,105420.0,105410.0,0.002]
[1749992166402,0.19922198,105410.0,105400.0,0.38263706]
[1749992166614,0.21819451,105410.0,105400.0,0.23732418]
[1749992166861,0.21819523,105410.0,105400.0,0.38263706]
[1749992167198,0.21819523,105410.0,105400.0,0.22783706]
[1749992167418,0.21819523,105410.0,105400.0,0.38263706]
[1749992168220,0.21819523,105410.0,105400.0,0.38359706]
[1749992168374,0.22768154,105410.0,105400.0,0.39508418]
[1749992168778,0.21819523,105410.0,105400.0,0.35713516]
[1749992168949,0.20870874,105410.0,105400.0,0.35713516]
[1749992169145,0.20622874,105410.0,105400.0,0.20237516]
[1749992169345,0.19674207,105410.0,105400.0,0.20237598]
[1749992169762,0.19674207,105410.0,105400.0,0.21186346]
[1749992170007,0.19674207,105410.0,105400.0,0.22135085]
[1749992171991,0.53674207,105410.0,105400.0,0.23083815]
[1749992173471,0.36845929,105410.0,105400.0,0.27422518]
[1749992173679,0.37794596,105410.0,105400.0,0.27422518]
[1749992174007,0.38743272,105410.0,105400.0,0.26473815]
[1749992174192,0.56768181,105410.0,105400.0,0.26473815]
[1749992174634,0.56768181,105410.0,105400.0,0.27422536]
[1749992175170,0.56768181,105410.0,105400.0,0.27422491]
[1749992175908,0.3779465,105410.0,105400.0,0.27422446]
[1749992177210,0.36845974,105410.0,105400.0,0.27422446]
[1749992177637,0.34948622,105410.0,105400.0,0.27422446]
[1749992177846,0.35897253,105410.0,105400.0,0.3042364]
[1749992178078,0.35897235,105410.0,105400.0,0.3042364]
[1749992178288,0.36845884,105410.0,105400.0,0.3042364]
[1749992178677,0.35897235,105410.0,105400.0,0.27422446]
[1749992178885,0.34,105410.0,105400.0,0.27422446]
[1749992179422,0.34948604,105410.0,105400.0,0.27422446]
[1749992179861,0.34948595,105410.0,105400.0,0.27422446]
[1749992180075,0.35897199,105410.0,105400.0,0.27422446]
[1749992180501,0.34948595,105410.0,105400.0,0.27422446]
[1749992180687,0.34,105410.0,105400.0,0.35027796]
[1749992180922,0.34,105410.0,105400.0,0.27422446]
[1749992181587,0.34948604,105410.0,105400.0,0.27422446]
[1749992181797,0.34948595,105410.0,105400.0,0.27422446]
[1749992182749,0.34,105410.0,105400.0,0.27422446]
[1749992184736,0.34948604,105410.0,105400.0,0.27422446]
[1749992184942,0.34,105410.0,105400.0,0.27422446]
[1749992186929,0.34,105410.0,105400.0,0.37868923]
[1749992187565,0.34,105410.0,105400.0,0.30263573]
[1749992187777,0.34948595,105410.0,105400.0,0.30263573]
[1749992187978,0.34,105410.0,105400.0,0.30263573]
[1749992191004,0.34948595,105410.0,105400.0,0.30263573]
[1749992191621,0.35897208,105410.0,105400.0,0.30263573]
[1749992192298,0.34948595,105410.0,105400.0,0.30263573]
[1749992192703,0.34,105410.0,105400.0,0.33055573]
[1749992192989,0.34,105410.0,105400.0,0.30263573]
[1749992194242,0.35897217,105410.0,105400.0,0.30263573]
[1749992197068,0.34948595,105410.0,105400.0,0.30263573]